{"text_format":"1","workbook":"xlsx","n_sheets":4,"sheets":["Tutvustus","Kahjustuste kirjeldamine","kriteeriumid","Salvestatud andmed"],"not_rendered":{"charts":0,"images":2,"macros":1,"external_links":0,"defined_names":0,"comments":0,"pivot_tables":0},"unopened":[],"bounds":{"document_bytes":16777216,"sheet_cells":100000,"rows_first":2000,"rows_last":500,"rows_between":2000,"halvings":0,"cell_chars":16384,"cell_head_chars":4096},"cells_cut":0,"cells_raw":0,"read":"whole","date_system":"1900"}

{"sheet":"Tutvustus","index":0,"n_rows":29,"n_cols":4,"rows_kept":29,"cut":false,"hidden":false,"merged":[]}
[]
[null,"Museaalide seisundi hindamise mudel"]
[]
[null,"Sissejuhatus"]
[null,null,null,"Objektide säilitamiseks on oluline teada, millises seisundis nad on ja osata kindlaks teha erinevaid kahjustusi. Kahjustuste määratlemine on tähtis nii ennetava säilitamise kui ka konserveerimise seisukohast. Põhiteadmised ennetavast konserveerimisest aitavad koguhoidjatel märgata varajasi kahjustuse märke objektidel ja astuda samme nende edasise kahjustamise vältimiseks. \nOsates paremini määrata museaali seisundit, suudab koguhoidja objektiivsemalt hinnata objekti konserveerimisvajadust ning kohendada selle järgi eksponeerimis- ning säilitustingimusi, vähendades nii näituste, transpordi ja hoiustamise käigus tekkivate juhuslike kahjustuste riski. Ühtlasi on konservaatoritel hõlpsam teha koostööd koguhoidjatega, kes kasutavad pädevat terminoloogiat objektide seisukorra ja kahjustuste ulatuse kirjeldamisel."]
[null,null,null,"Museaalide kahjustuste kirjeldamise mudel on mõeldud kasutamiseks kõikidele säilitamisega tegelevatele asutustele ja spetsialistidele ning muidu huvilistele. Mudeli kasutamine ei nõua mingeid eelteadmisi ega oskusi."]
[]
[null,"Mida tuleks pidada silmas mudeli kasutamisel: "]
[null,null,1,"Museaali kahjustusi kirjeldatakse visuaalselt."]
[null,null,2,"Erinevatest materjalidest objekte kirjeldatakse ühtse metoodika alusel. Materjalide erisused on mõnel juhul olulised objektide seisundi määramisel. "]
[null,null,3,"Iga kahjustuskategooria all kirjeldatakse vastavaid kahjustusi, alates kergematest ja lõpetades ulatuslikumatega. Kirjeldus koosneb kas ühest või mitmest terminist."]
[null,null,4,"Üldiselt kirjeldatakse objekt ühe tervikuna. "]
[null,null,5,"Kui objekt koosneb mitmest selgelt eristuvast osast (nt maal ja maaliraam, raamatu köide ja sisuplokk) ning kahjustused neil on väga erinevad, siis kas kirjeldada enimkahjustatud osa (nt kirjeldame ainult maali) või kirjeldada eraldi kõiki objekti osi (nt kirjeldatakse nii maali kui ka raami seisundit). "]
[null,null,6,"Objektide kogumit võib kirjeldada ühe tervikuna."]
[null,null,7,"Eelistatult märgitakse ühe kahjustuste kategooria raames kõige ilmsem kahjustus, kuid vajadusel võib märkida ka mitu kahjustust."]
[]
[null,"Kuidas kasutada "]
[null,null,null,"Avage tööleht „Kahjustuste kirjeldamine“. Päisesse saab märkida museaali identifikaatori (nt number, kohaviit jms), nimetuse ja materjali."]
[null,null,null,"Materjali märkimine on oluline mõnda tüüpi objektide korral seisundi leidmiseks. Materjal tuleks panna kirja siis, kui objekt koosneb sellest suuremas osas: plastik, metall, puit, kivi, nahk, foto, klaas, keraamika. \n                                                                      Märkida ainult üks materjal. Kasutada täpselt neid sõnu!"]
[null,null,null,"Märkige kahjustuse leidumisel \"X\" sama real kollase taustaga lahtrisse (arvesse läheb ka muu märge või (täpsustav) sõna). Kui kahjustused on kirjeldatud, sisaldab vormi lõpus „Objekti seisund kokkuvõetuna“ järel olev sinise taustaga lahter objekti seisundit. Kui antud seisundi korral on vajalikud mingid tegevused, siis ilmuvad need lahtrisse „Soovitatavad tegevused“."]
[null,null,null,"Kahjustuste kirjeldamise lehe lõpus on nupp \"Salvesta andmed tabelisse\". Sellele vajutamine viib sisestatud teabe töölehele \"Salvestatud andmed\" tabeli lõppu ja tühjendab lahtrid."]
[null,null,null,"„Salvestatud andmete“ töölehel olevate kirjete arv on nähtav töölehel „Kahjustuste kirjeldamine“ ülal paremal."]
[null,null,null,"Kui andmeid tabelisse salvestada ei soovi, saab kahjustuste kirjeldamise töölehe andmetest tühjendada vajutades nupule „Tühjenda lahtrid“."]
[null,null,null,"Töölehel „Salvestatud andmed“ näidatakse museaali identifikaator, materjal, seisund ja soovitused ning kõik kahjustused. Samuti fikseeritakse salvestamise kuupäev ja kellaaeg iga museaali kohta."]
[]
[]
[null,null,null,"Koostaja: Kurmo Konsa (kurmo.konsa@pallasart.ee)"]
[null,null,null,"Muinsukaitseamet"]
[null,null,null,"Kõrgem Kunstikool Pallas"]

{"sheet":"Kahjustuste kirjeldamine","index":1,"n_rows":73,"n_cols":11,"rows_kept":73,"cut":false,"hidden":false,"merged":[[5,1,5,3],[6,1,6,3],[12,1,12,3],[18,1,18,3],[28,1,28,3],[72,2,72,4],[36,1,36,3],[45,1,45,3],[52,1,52,3],[56,1,56,3],[63,1,63,3]]}
[null,"Kahjustuste kirjeldamise vorm"]
[null,null,"museaali  ","identifikaator:",null,null,null,null,null,"Salvestatud andmeridu tabelis:",{"$f":"COUNT('Salvestatud andmed'!BE:BE)","v":0}]
[null,null,null,"nimetus:"]
[null,null,null,"materjal:"]
[]
[null,"1_Terviklikkus – [Objekt on terviklik, kui kõik olulised osad on säilinud ja objekti küljes."]
[null,"Kirjeldada ainult siis kui terviklikkuse kadu on ilmne. Kui ei ole selge, milline algne objekt oli ja kas praegune seisund viitab terviklikkuse kaole, siis jätta kirjeldamata.]",null,null,"Seisund:","abiinfo"]
[null,"Nr","Kahjustus","Märkige leidumisel X\n(või muu märge)",{"$f":"IF(SUM(F9:F12)<3,F8,\nIF(F8=\"väga halb\",\"väga halb\",\nIF(F8=\"halb\",\"väga halb\",\nIF(F8=\"rahuldav\",\"halb\",\"\"))))","v":"hea"},{"$f":"IF(IFERROR(FIND(\"väga halb\",E9&E10&E11&E12),0)>0,\"väga halb\",\nIF(IFERROR(FIND(\"halb\",E9&E10&E11&E12),0)>0,\"halb\",\nIF(IFERROR(LEN(E9&E10&E11&E12),0)>0,\"rahuldav\",\"hea\")))","v":"hea"}]
[null,"1_1","osad logisevad; \nkinnitus nõrk, loksub",null,{"$f":"IF(LEN(D9)>0,VLOOKUP(B9,kriteeriumid!$A:$B,2,FALSE),\"\")","v":""},{"$f":"IF(LEN(D9)>0,1,0)","v":0}]
[null,"1_2","osad, tükid puuduvad",null,{"$f":"IF(LEN(D10)>0,VLOOKUP(B10,kriteeriumid!$A:$B,2,FALSE),\"\")","v":""},{"$f":"IF(LEN(D10)>0,1,0)","v":0}]
[null,"1_3","osad lahtised, eraldunud; \ntükid murdunud, irdunud",null,{"$f":"IF(LEN(D11)>0,VLOOKUP(B11,kriteeriumid!$A:$B,2,FALSE),\"\")","v":""},0]
[null,"1_4","säilinud üksikud osad, fragmendid",null,{"$f":"IF(LEN(D12)>0,VLOOKUP(B12,kriteeriumid!$A:$B,2,FALSE),\"\")","v":""}]
[null,"\n2_Deformatsioonid – [Objekti kuju ja vorm on muutunud. Kirjeldada ainult siis kui eseme deformeerumine on ilmne. Kui ei ole selge, milline algne objekt oli ja kas praegune seisund viitab deformeerumisele, siis jätta kirjeldamata.]"]
[null,"Nr","Kahjustus","Märkige leidumisel X\n(või muu märge)",{"$f":"IF(SUM(F15:F17)<3,F14,\nIF(F14=\"väga halb\",\"väga halb\",\nIF(F14=\"halb\",\"väga halb\",\nIF(F14=\"rahuldav\",\"halb\",\"\"))))","v":"hea"},{"$f":"IF(IFERROR(FIND(\"väga halb\",E15&E16&E17),0)>0,\"väga halb\",\nIF(IFERROR(FIND(\"halb\",E15&E16&E17),0)>0,\"halb\",\nIF(IFERROR(LEN(E15&E16&E17),0)>0,\"rahuldav\",\"hea\")))","v":"hea"}]
[null,"2_1","kõverdunud; \nkõmmeldunud; \nväändunud,\nmurdejooned",null,{"$f":"IF(LEN(D15)>0,VLOOKUP(B15,kriteeriumid!$A:$B,2,FALSE),\"\")","v":""},{"$f":"IF(LEN(D15)>0,1,0)","v":0}]
[null,"2_2","kortsus; \nkokkumurtud; \nmõlkis; \nkokku tõmbunud; \nvanunud",null,{"$f":"IF(LEN(D16)>0,VLOOKUP(B16,kriteeriumid!$A:$B,2,FALSE),\"\")","v":""},0]
[null,"2_3","objekti kuju kadunud; \npurunenud; \nmoondunud, muutunud",null,{"$f":"IF(LEN(D17)>0,VLOOKUP(B17,kriteeriumid!$A:$B,2,FALSE),\"\")","v":""},0]
[]
[null,"3_Materjali struktuur – [objekti moodustava peamise materjali seisund]"]
[null,"Nr","Kahjustus","Märkige leidumisel X\n(või muu märge)",{"$f":"IF(SUM(F21:F28)<3,F20,\nIF(F20=\"väga halb\",\"väga halb\",\nIF(F20=\"halb\",\"väga halb\",\nIF(F20=\"rahuldav\",\"halb\",\"\"))))","v":"hea"},{"$f":"IF(IFERROR(FIND(\"väga halb\",E21&E22&E23&E24&E25&E26&E27&E28),0)>0,\"väga halb\",\nIF(IFERROR(FIND(\"halb\",E21&E22&E23&E24&E25&E26&E27&E28),0)>0,\"halb\",\nIF(IFERROR(LEN(E21&E22&E23&E24&E25&E26&E27&E28),0)>0,\"rahuldav\",\"hea\")))","v":"hea"}]
[null,"3_1","rabe, murduv; \njäik; \nhabras",null,{"$f":"IF(LEN(D21)>0,VLOOKUP(B21,kriteeriumid!$A:$B,2,FALSE),\"\")","v":""},{"$f":"IF(LEN(D21)>0,1,0)","v":0}]
[null,"3_2","mõranenud, pragunenud; \nlõngad viledaks kulunud ",null,{"$f":"IF(LEN(D22)>0,VLOOKUP(B22,kriteeriumid!$A:$B,2,FALSE),\"\")","v":""},0]
[null,"3_3","praod; \nrebendid; \ntorkeaugud; \nlõhenenud; \nõmbluse kohalt kärisenud",null,{"$f":"IF(LEN(D23)>0,VLOOKUP(B23,kriteeriumid!$A:$B,2,FALSE),\"\")","v":""},0]
[null,"3_4","narmendav, ribadeks; \nkoe katkemine, kadu; \nserva katkemine, kadu; \nmaterjali kadu",null,{"$f":"IF(LEN(D24)>0,VLOOKUP(B24,kriteeriumid!$A:$B,2,FALSE),\"\")","v":""},0]
[null,"3_5","suured rebendid; \nsuured augud",null,{"$f":"IF(LEN(D25)>0,VLOOKUP(B25,kriteeriumid!$A:$B,2,FALSE),\"\")","v":""},0]
[null,"3_6","kihistunud (nt vineer, nahk); kihtkoorumine",null,{"$f":"IF(LEN(D26)>0,VLOOKUP(B26,kriteeriumid!$A:$B,2,FALSE),\"\")","v":""},0]
[null,"3_7","põlenud; \nsöestunud",null,{"$f":"IF(LEN(D27)>0,VLOOKUP(B27,kriteeriumid!$A:$B,2,FALSE),\"\")","v":""},0]
[null,"3_8","pude; \npehkinud, määndunud; materjal täielikult \nkorrodeerumud",null,{"$f":"IF(LEN(D28)>0,VLOOKUP(B28,kriteeriumid!$A:$B,2,FALSE),\"\")","v":""},0]
[null,"\n4_Pinna mehaanilised kahjustused – [objekti pinnakihi seisund]"]
[null,"Nr","Kahjustus","Märkige leidumisel X\n(või muu märge)",{"$f":"IF(SUM(F31:F35)<3,F30,\nIF(F30=\"väga halb\",\"väga halb\",\nIF(F30=\"halb\",\"väga halb\",\nIF(F30=\"rahuldav\",\"halb\",\"\"))))","v":"hea"},{"$f":"IF(IFERROR(FIND(\"väga halb\",E31&E32&E33&E34&E35),0)>0,\"väga halb\",\nIF(IFERROR(FIND(\"halb\",E31&E32&E33&E34&E35),0)>0,\"halb\",\nIF(IFERROR(LEN(E31&E32&E33&E34&E35),0)>0,\"rahuldav\",\"hea\")))","v":"hea"}]
[null,"4_1","kulunud, hõõrdunud, kriibitud",null,{"$f":"IF(LEN(D31)>0,VLOOKUP(B31,kriteeriumid!$A:$B,2,FALSE),\"\")","v":""},{"$f":"IF(LEN(D31)>0,1,0)","v":0}]
[null,"4_2","pundunud, üles tõusnud, tursunud alad; \nkerkinud, paisunud; \nkrakleestunud; täkked",null,{"$f":"IF(LEN(D32)>0,VLOOKUP(B32,kriteeriumid!$A:$B,2,FALSE),\"\")","v":""},0]
[null,"4_3","tükikesed, helbed eraldunud;\nemulsiooni kadu (fotod)",null,{"$f":"IF(LEN(D33)>0,VLOOKUP(B33,kriteeriumid!$A:$B,2,FALSE),\"\")","v":""},0]
[null,"4_4","mõranenud; \nlõhenenud",null,{"$f":"IF(LEN(D34)>0,VLOOKUP(B34,kriteeriumid!$A:$B,2,FALSE),\"\")","v":""},0]
[null,"4_5","pulbristunud, killustunud; \nvärvikiht kadunud",null,{"$f":"IF(LEN(D35)>0,VLOOKUP(B35,kriteeriumid!$A:$B,2,FALSE),\"\")","v":""},0]
[]
[null,"5_Määrdumus/ladestused pinnal – [objekti pinnal asuv teisene aine]"]
[null,"Nr","Kahjustus","Märkige leidumisel X\n(või muu märge)",{"$f":"IF(SUM(F39:F45)<3,F38,\nIF(F38=\"väga halb\",\"väga halb\",\nIF(F38=\"halb\",\"väga halb\",\nIF(F38=\"rahuldav\",\"halb\",\"\"))))","v":"hea"},{"$f":"IF(IFERROR(FIND(\"väga halb\",E39&E40&E41&E42&E43&E44&E45),0)>0,\"väga halb\",\nIF(IFERROR(FIND(\"halb\",E39&E40&E41&E42&E43&E44&E45),0)>0,\"halb\",\nIF(IFERROR(LEN(E39&E40&E41&E42&E43&E44&E45),0)>0,\"rahuldav\",\"hea\")))","v":"hea"}]
[null,"5_1","tolmune",null,{"$f":"IF(LEN(D39)>0,VLOOKUP(B39,kriteeriumid!$A:$B,2,FALSE),\"\")","v":""},{"$f":"IF(LEN(D39)>0,1,0)","v":0}]
[null,"5_2","üksikud plekid; \nsõrmejäljed; \npritsmed",null,{"$f":"IF(LEN(D40)>0,VLOOKUP(B40,kriteeriumid!$A:$B,2,FALSE),\"\")","v":""},0]
[null,"5_3","üleni määrdunud; porine, mullane; palju plekke; \ntahmane; paakunud tolmu ja mustuse kiht",null,{"$f":"IF(LEN(D41)>0,VLOOKUP(B41,kriteeriumid!$A:$B,2,FALSE),\"\")","v":""},0]
[null,"5_4","rasvane; \nvahane; liimijäljed",null,{"$f":"IF(LEN(D42)>0,VLOOKUP(B42,kriteeriumid!$A:$B,2,FALSE),\"\")","v":""},0]
[null,"5_5","kohati korrodeerunud; \ntuhmunud",null,{"$f":"IF(LEN(D43)>0,VLOOKUP(B43,kriteeriumid!$A:$B,2,FALSE),\"\")","v":""},0]
[null,"5_6","koorik, soolad, sete; \nkleepuv kiht; \nhigistamine ",null,{"$f":"IF(LEN(D44)>0,VLOOKUP(B44,kriteeriumid!$A:$B,2,FALSE),\"\")","v":""},0]
[null,"5_7","ulatuslikult korrodeerunud",null,{"$f":"IF(LEN(D45)>0,VLOOKUP(B45,kriteeriumid!$A:$B,2,FALSE),\"\")","v":""},0]
[null,"\n6_Värvimuutused – [visuaalselt hinnatavad muutused objekti pinnal. Kirjeldada ainult siis kui värvimuutused on ilmsed. Kui ei ole selge, milline algne objekt oli ja kas praegune seisund viitab värvimuutustele, siis jätta kirjeldamata.]"]
[null,"Nr","Kahjustus","Märkige leidumisel X\n(või muu märge)",{"$f":"IF(SUM(F48:F51)<3,F47,\nIF(F47=\"väga halb\",\"väga halb\",\nIF(F47=\"halb\",\"väga halb\",\nIF(F47=\"rahuldav\",\"halb\",\"\"))))","v":"hea"},{"$f":"IF(IFERROR(FIND(\"väga halb\",E48&E49&E50&E51),0)>0,\"väga halb\",\nIF(IFERROR(FIND(\"halb\",E48&E49&E50&E51),0)>0,\"halb\",\nIF(IFERROR(LEN(E48&E49&E50&E51),0)>0,\"rahuldav\",\"hea\")))","v":"hea"}]
[null,"6_1","tumenenud (nt maal)",null,{"$f":"IF(LEN(D48)>0,VLOOKUP(B48,kriteeriumid!$A:$B,2,FALSE),\"\")","v":""},{"$f":"IF(LEN(D48)>0,1,0)","v":0}]
[null,"6_2","pleekunud, luitunud (muutunud heledamaks); \ntuhmunud; \nhõbeläige/hõbepeegel (fotomaterjalidel); \ntoonimuutus (värvifotomaterjalidel); ",null,{"$f":"IF(LEN(D49)>0,VLOOKUP(B49,kriteeriumid!$A:$B,2,FALSE),\"\")","v":""},0]
[null,"6_3","plekiline, laigud;\nfoksing; \nkoltunud; \nläbipaistvus muutunud;\nopaaksus; \nvikerkaarevärvilised plekid",null,{"$f":"IF(LEN(D50)>0,VLOOKUP(B50,kriteeriumid!$A:$B,2,FALSE),\"\")","v":""},0]
[null,"6_4","värv laiali, jookseb, laiali valgunud; suured \nvoolujooned; \noreoolid",null,{"$f":"IF(LEN(D51)>0,VLOOKUP(B51,kriteeriumid!$A:$B,2,FALSE),\"\")","v":""},0]
[]
[null,"7_Bioloogilised kahjustused"]
[null,"Nr","Kahjustus","Märkige leidumisel X\n(või muu märge)",{"$f":"IF(SUM(F55:F57)<3,F54,\nIF(F54=\"väga halb\",\"väga halb\",\nIF(F54=\"halb\",\"väga halb\",\nIF(F54=\"rahuldav\",\"halb\",\"\"))))","v":"hea"},{"$f":"IF(IFERROR(FIND(\"väga halb\",E55&E56),0)>0,\"väga halb\",\nIF(IFERROR(FIND(\"halb\",E55&E56),0)>0,\"halb\",\nIF(IFERROR(LEN(E55&E56),0)>0,\"rahuldav\",\"hea\")))","v":"hea"}]
[null,"7_1","jäljed putukate, näriliste tegevusest (närimisjäljed, \nnäripuru, võrgend); koikahjustus",null,{"$f":"IF(LEN(D55)>0,VLOOKUP(B55,kriteeriumid!$A:$B,2,FALSE),\"\")","v":""},{"$f":"IF(LEN(D55)>0,1,0)","v":0}]
[null,"7_2","hallitus",null,{"$f":"IF(LEN(D56)>0,VLOOKUP(B56,kriteeriumid!$A:$B,2,FALSE),\"\")","v":""},0]
[null,"\n8_Varasemad parandused"]
[null,"Nr","Kahjustus","Märkige leidumisel X\n(või muu märge)",{"$f":"IF(SUM(F59:F63)<3,F58,\nIF(F58=\"väga halb\",\"väga halb\",\nIF(F58=\"halb\",\"väga halb\",\nIF(F58=\"rahuldav\",\"halb\",\"\"))))","v":"hea"},{"$f":"IF(IFERROR(FIND(\"väga halb\",E59&E60&E61&E62&E63),0)>0,\"väga halb\",\nIF(IFERROR(FIND(\"halb\",E59&E60&E61&E62&E63),0)>0,\"halb\",\nIF(IFERROR(LEN(E59&E60&E61&E62&E63),0)>0,\"rahuldav\",\"hea\")))","v":"hea"}]
[null,"8_1","liimijäljed; \nkleeplint",null,{"$f":"IF(LEN(D59)>0,VLOOKUP(B59,kriteeriumid!$A:$B,2,FALSE),\"\")","v":""},{"$f":"IF(LEN(D59)>0,1,0)","v":0}]
[null,"8_2","ebasobivad paigad; \nebasobivad parandused; \nhalvasti fikseeritud osad; ebasobivad töövõtted",null,{"$f":"IF(LEN(D60)>0,VLOOKUP(B60,kriteeriumid!$A:$B,2,FALSE),\"\")","v":""},0]
[null,"8_3","ebasobivad kinnitusvahendid (naelad, klambrid)",null,{"$f":"IF(LEN(D61)>0,VLOOKUP(B61,kriteeriumid!$A:$B,2,FALSE),\"\")","v":""},0]
[null,"8_4","ebasobiv parandusmaterjal",null,{"$f":"IF(LEN(D62)>0,VLOOKUP(B62,kriteeriumid!$A:$B,2,FALSE),\"\")","v":""},0]
[null,"8_5","valesti, ebasobivalt kokku pandud objekt",null,{"$f":"IF(LEN(D63)>0,VLOOKUP(B63,kriteeriumid!$A:$B,2,FALSE),\"\")","v":""},0]
[null,"\n9_Ümbris "]
[null,"Nr","Ümbris","Märkige ümbrise esinemine/mitte-esinemine ja ebasobiv ümbris (nt ristiga)"]
[null,"9_1","ümbristatud",null,null,{"$f":"IF(LEN(D66)>0,1,0)","v":0}]
[null,"9_2","ebasobiv ümbris",null,null,0]
[null,"9_3","ümbris puudub, aga on vajalik ",null,null,0]
[null,"9_4","ei vaja ümbrist",null,null,0]
[]
[null,null,"Objekti seisund kokkuvõetuna: ",{"$f":"IF(IFERROR(FIND(\"väga halb\",E8&E14&E20&E30&E38&E47&E54&E58),0)>0,\"väga halb\",\nIF(IFERROR(FIND(\"halb\",E8&E14&E20&E30&E38&E47&E54&E58),0)>0,\"halb\",\nIF(IFERROR(FIND(\"rahuldav\",E8&E14&E20&E30&E38&E47&E54&E58),0)>0,\"rahuldav\",\"hea\")))","v":"hea"}]
[null,null,"Soovitatavad tegevused: "]
[null,null,{"$f":"IF(D71=\"väga halb\",\"Kontrollida seisundit. Seejärel: \na) konserveerimisele \nb) kohesele konserveerimisele, \nc) jälgimisele (iga aasta tagant või 5 aasta tagant)\",\"\")","v":""}]

{"sheet":"kriteeriumid","index":2,"n_rows":61,"n_cols":4,"rows_kept":61,"cut":false,"hidden":true,"merged":[[55,0,55,3],[38,0,38,2],[44,0,44,2],[0,0,0,2],[6,0,6,2],[11,0,11,2],[21,0,21,2],[28,0,28,2]]}
["1_Terviklikkus"]
["Kahjustuse \nnumber","Seisund","Tegevus"]
["1_1","rahuldav","Koheselt ei ole vaja midagi ette võtta"]
["1_2","rahuldav","Koheselt ei ole vaja midagi ette võtta"]
["1_3","halb","Kontrollida seisundit. Seejärel: \na) konserveerimisele\nb) kohesele konserveerimisele,\nc) jälgimisele (iga aasta tagant\nvõi 5 aasta tagant)"]
["1_4","[ei võeta arvesse]",""]
["2_Deformatsioonid "]
["Kahjustuse \nnumber","Seisund","Tegevus"]
["2_1","rahuldav","Koheselt ei ole vaja midagi ette võtta"]
["2_2","rahuldav","Koheselt ei ole vaja midagi ette võtta"]
["2_3","väga halb","Kontrollida seisundit. Seejärel: \na) konserveerimisele\nb) kohesele konserveerimisele,\nc) jälgimisele (iga aasta tagant\nvõi 5 aasta tagant)"]
["3_Materjali struktuur "]
["Kahjustuse \nnumber","Seisund","Tegevus"]
["3_1","halb","Kontrollida seisundit. Seejärel: \na) konserveerimisele\nb) kohesele konserveerimisele,\nc) jälgimisele (iga aasta tagant\nvõi 5 aasta tagant)"]
["3_2",{"$f":"IF('Kahjustuste kirjeldamine'!E4=\"plastik\",\"halb\",\"rahuldav\")","v":"rahuldav"},"Kui materjaliks „plastik“, siis kontrollida \nseisundit","Kui materjaliks „plastik“ siis kirjutatakse siia\n„halb“"]
["3_3","rahuldav","Koheselt ei ole vaja midagi ette võtta"]
["3_4","halb","Koheselt ei ole vaja midagi ette võtta"]
["3_5","halb","Koheselt ei ole vaja midagi ette võtta"]
["3_6","väga halb","Kontrollida seisundit. Seejärel: \na) konserveerimisele\nb) kohesele konserveerimisele,\nc) jälgimisele (iga aasta tagant\nvõi 5 aasta tagant)"]
["3_7","väga halb","Kontrollida seisundit. Seejärel: \na) konserveerimisele\nb) kohesele konserveerimisele,\nc) jälgimisele (iga aasta tagant\nvõi 5 aasta tagant)"]
["3_8","väga halb","Kontrollida seisundit. Seejärel: \na) konserveerimisele\nb) kohesele konserveerimisele,\nc) jälgimisele (iga aasta tagant\nvõi 5 aasta tagant)"]
["4_Pinna mehaanilised kahjustused "]
["Kahjustuse \nnumber","Seisund","Tegevus"]
["4_1","rahuldav","Koheselt ei ole vaja midagi ette võtta","[arheoloogiliste objektide korral ei arvestata] <- kui kuskil fikseeritakse, et tegu on arheoloogilise objektiga, saab sõna \"rahuldav\" siit sellisel juhul eemaldada IF-käsuga"]
["4_2","rahuldav","Koheselt ei ole vaja midagi ette võtta"]
["4_3","halb","Kontrollida seisundit. Seejärel: \na) konserveerimisele\nb) kohesele konserveerimisele,\nc) jälgimisele (iga aasta tagant\nvõi 5 aasta tagant)"]
["4_4",{"$f":"IF(OR('Kahjustuste kirjeldamine'!$E$4=\"metall\",'Kahjustuste kirjeldamine'!$E$4=\"puit\",'Kahjustuste kirjeldamine'!$E$4=\"kivi\",'Kahjustuste kirjeldamine'!$E$4=\"nahk\"),\"halb\",\nIF(OR('Kahjustuste kirjeldamine'!$E$4=\"foto\",'Kahjustuste kirjeldamine'!$E$4=\"plastik\",'Kahjustuste kirjeldamine'!$E$4=\"klaas\",'Kahjustuste kirjeldamine'!$E$4=\"keraamika\"),\"väga halb\",\"rahuldav\"))","v":"rahuldav"},"Kontrollida seisundit. Seejärel: \na) konserveerimisele\nb) kohesele konserveerimisele,\nc) jälgimisele (iga aasta tagant\nvõi 5 aasta tagant)","Kui materjaliks metall, puit, \nkivi, nahk, siis „halb“. \nKui materjaliks foto, plastik, \nklaas, keraamika, siis „väga \nhalb“. \nKui mõni muu materjal, siis \n„rahuldav“. "]
["4_5","väga halb","Kontrollida seisundit. Seejärel: \na) konserveerimisele\nb) kohesele konserveerimisele,\nc) jälgimisele (iga aasta tagant\nvõi 5 aasta tagant)"]
["5_Määrdumus/ladestused pinnal "]
["Kahjustuse \nnumber","Seisund","Tegevus"]
["5_1","rahuldav","Kontrollida seisundit. Seejärel: \na) konserveerimisele\nb) kohesele konserveerimisele,\nc) jälgimisele (iga aasta tagant\nvõi 5 aasta tagant)"]
["","","Puhastada."]
["5_2","rahuldav","Kontrollida seisundit. Seejärel: \na) konserveerimisele\nb) kohesele konserveerimisele,\nc) jälgimisele (iga aasta tagant\nvõi 5 aasta tagant)"]
["5_3","halb","Kontrollida seisundit. Seejärel: \na) konserveerimisele\nb) kohesele konserveerimisele,\nc) jälgimisele (iga aasta tagant\nvõi 5 aasta tagant)"]
["5_4","rahuldav","Koheselt ei ole vaja midagi ette võtta"]
["5_5","rahuldav","Koheselt ei ole vaja midagi ette võtta"]
["5_6","väga halb","Kontrollida seisundit. Seejärel: \na) konserveerimisele\nb) kohesele konserveerimisele,\nc) jälgimisele (iga aasta tagant\nvõi 5 aasta tagant)"]
["5_7","väga halb","Kontrollida seisundit. Seejärel: \na) konserveerimisele\nb) kohesele konserveerimisele,\nc) jälgimisele (iga aasta tagant\nvõi 5 aasta tagant)"]
["6_Värvimuutused"]
["Nr","Seisund","Tegevus"]
["6_1","rahuldav","Koheselt ei ole vaja midagi ette võtta"]
["6_2","rahuldav","Koheselt ei ole vaja midagi ette võtta"]
["6_3","halb","Kontrollida seisundit. Seejärel: \na) konserveerimisele\nb) kohesele konserveerimisele,\nc) jälgimisele (iga aasta tagant\nvõi 5 aasta tagant)"]
["6_4","halb","Kontrollida seisundit. Seejärel: \na) konserveerimisele\nb) kohesele konserveerimisele,\nc) jälgimisele (iga aasta tagant\nvõi 5 aasta tagant)"]
["7_Bioloogilised kahjustused"]
["Nr","Seisund","Tegevus"]
["7_1","rahuldav","Kontrollida koheselt eset ja \nkeskkonnatingimusi hoidlas"]
["7_2","halb","Kontrollida koheselt eset ja \nkeskkonnatingimusi hoidlas"]
["8_Varasemad parandused"]
["Nr","Seisund","Tegevus"]
["8_1","halb","Kontrollida seisundit. Seejärel: \na) konserveerimisele\nb) kohesele konserveerimisele,\nc) jälgimisele (iga aasta tagant\nvõi 5 aasta tagant)"]
["8_2","rahuldav","Kontrollida seisundit. Seejärel: \na) konserveerimisele\nb) kohesele konserveerimisele,\nc) jälgimisele (iga aasta tagant\nvõi 5 aasta tagant)"]
["8_3","rahuldav","Kontrollida seisundit. Seejärel: \na) konserveerimisele\nb) kohesele konserveerimisele,\nc) jälgimisele (iga aasta tagant\nvõi 5 aasta tagant)"]
["8_4","rahuldav","Kontrollida seisundit. Seejärel: \na) konserveerimisele\nb) kohesele konserveerimisele,\nc) jälgimisele (iga aasta tagant\nvõi 5 aasta tagant)"]
["8_5","rahuldav","Kontrollida seisundit. Seejärel: \na) konserveerimisele\nb) kohesele konserveerimisele,\nc) jälgimisele (iga aasta tagant\nvõi 5 aasta tagant)"]
["9_Ümbris "]
["Nr","Ümbris","Seisund","Tegevus"]
["9_1","ümbristatud","Ei võeta seisundi määramisel arvesse.",""]
["9_2","ebasobiv ümbris",null,"Vahetada ümbris \nsäilitusümbrise vastu."]
["9_3","ümbris puudub, aga on vajalik ","","Ümbristada"]
["9_4","ei vaja ümbrist","",""]

{"sheet":"Salvestatud andmed","index":3,"n_rows":1,"n_cols":58,"rows_kept":1,"cut":false,"hidden":false,"merged":[]}
["Identifikaator","Nimetus","Materjal","Objekti seisund kokkuvõetuna ","Soovitatavad tegevused ","1_Terviklikkus.","1_1 osad logisevad; \nkinnitus nõrk, loksub","1_2 osad, tükid puuduvad","1_3 osad lahtised, eraldunud; \ntükid murdunud, irdunud","1_4 säilinud üksikud osad, fragmendid","2_Deformatsioonid","2_1 kõverdunud; \nkõmmeldunud; \nväändunud,\nmurdejooned","2_2 kortsus; \nkokkumurtud; \nmõlkis; \nkokku tõmbunud; \nvanunud","2_3 objekti kuju kadunud; \npurunenud; \nmoondunud, muutunud","3_Materjali struktuur","3_1 rabe, murduv; \njäik; \nhabras","3_2 mõranenud, pragunenud; \nlõngad viledaks kulunud ","3_3 praod; \nrebendid; \ntorkeaugud; \nlõhenenud; \nõmbluse kohalt kärisenud","3_4 narmendav, ribadeks; \nkoe katkemine, kadu; \nserva katkemine, kadu; \nmaterjali kadu","3_5 suured rebendid; \nsuured augud","3_6 kihistunud (nt vineer, nahk); kihtkoorumine","3_7 põlenud; \nsöestunud","3_8 pude; \npehkinud, määndunud; materjal täielikult \nkorrodeerumud","4_Pinna mehaanilised kahjustused","4_1 kulunud, hõõrdunud, kriibitud","4_2 pundunud, üles tõusnud, tursunud alad; \nkerkinud, paisunud; \nkrakleestunud; täkked","4_3 tükikesed, helbed eraldunud;\nemulsiooni kadu (fotod)","4_4 mõranenud; \nlõhenenud","4_5 pulbristunud, killustunud; \nvärvikiht kadunud","5_Määrdumus/ladestused pinnal","5_1 tolmune","5_2 üksikud plekid; \nsõrmejäljed; \npritsmed","5_3 üleni määrdunud; porine, mullane; palju plekke; \ntahmane; paakunud tolmu ja mustuse kiht","5_4 rasvane; \nvahane; liimijäljed","5_5 kohati korrodeerunud; \ntuhmunud","5_6 koorik, soolad, sete; \nkleepuv kiht; \nhigistamine ","5_7 ulatuslikult korrodeerunud","6_Värvimuutused","6_1 tumenenud (nt maal)","6_2 pleekunud, luitunud (muutunud heledamaks); \ntuhmunud; \nhõbeläige/hõbepeegel (fotomaterjalidel); \ntoonimuutus (värvifotomaterjalidel); ","6_3 plekiline, laigud;\nfoksing; \nkoltunud; \nläbipaistvus muutunud;\nopaaksus; \nvikerkaarevärvilised plekid","6_4 värv laiali, jookseb, laiali valgunud; suured \nvoolujooned; \noreoolid","7_Bioloogilised kahjustused","7_1 jäljed putukate, näriliste tegevusest (närimisjäljed, \nnäripuru, võrgend); koikahjustus","7_2 hallitus","8_Varasemad parandused","8_1 liimijäljed; \nkleeplint","8_2 ebasobivad paigad; \nebasobivad parandused; \nhalvasti fikseeritud osad; ebasobivad töövõtted","8_3 ebasobivad kinnitusvahendid (naelad, klambrid)","8_4 ebasobiv parandusmaterjal","8_5 valesti, ebasobivalt kokku pandud objekt","9_Ümbris","9_1 ümbristatud","9_2 ebasobiv ümbris","9_3 ümbris puudub, aga on vajalik ","9_4 ei vaja ümbrist","Salvestamise kuupäev","Salvestamise kellaaeg"]